[Event "Titled Tuesday Blitz September 27 Early 2022"]
[White "Shapiro, Daniel"]
[Black "Pourkashiyan, Atousa"]
[WhiteFideId "2001780"]
[BlackFideId "12502014"]
[WhiteElo "2213"]
[BlackElo "2247"]
[Result "0-1"]
[Round "07"]
[TimeControl "180+1"]
[Date "2022.09.27"]
[WhiteClock "0:00:30"]
[BlackClock "0:00:06"]

1. d4 {[%clk 0:03:00]}  Nf6 {[%clk 0:02:46]} 2. c4 {[%clk 0:03:00]}  e6 {[%clk 0:02:36]} 3. g3 {[%clk 0:03:00]}  d5 {[%clk 0:02:32]} 4. Nf3 {[%clk 0:03:00]}  Be7 {[%clk 0:02:32]} 5. Bg2 {[%clk 0:03:00]}  O-O {[%clk 0:02:31]} 6. O-O {[%clk 0:03:01]}  c5 {[%clk 0:02:24]} 7. cxd5 {[%clk 0:03:00]}  exd5 {[%clk 0:02:12]} 8. Nc3 {[%clk 0:02:53]}  Nc6 {[%clk 0:01:43]} 9. Be3 {[%clk 0:02:30]}  Bg4 {[%clk 0:01:20]} 10. h3 {[%clk 0:02:13]}  Bxf3 {[%clk 0:00:35]} 11. Bxf3 {[%clk 0:02:14]}  cxd4 {[%clk 0:00:35]} 12. Bxd4 {[%clk 0:02:14]}  Nxd4 {[%clk 0:00:36]} 13. Qxd4 {[%clk 0:02:14]}  b6 {[%clk 0:00:26]} 14. Nxd5 {[%clk 0:01:48]}  Nxd5 {[%clk 0:00:26]} 15. Bxd5 {[%clk 0:01:48]}  Rc8 {[%clk 0:00:26]} 16. Rfd1 {[%clk 0:01:33]}  Bc5 {[%clk 0:00:23]} 17. Bxf7+ {[%clk 0:01:10]}  Kxf7 {[%clk 0:00:09]} 18. Qf4+ {[%clk 0:01:10]}  Qf6 {[%clk 0:00:08]} 19. Qxf6+ {[%clk 0:00:44]}  Kxf6 {[%clk 0:00:07]} 20. Rd7 {[%clk 0:00:43]}  Rf7 {[%clk 0:00:08]} 21. Rad1 {[%clk 0:00:42]}  Rxd7 {[%clk 0:00:08]} 22. Rxd7 {[%clk 0:00:42]}  a5 {[%clk 0:00:08]} 23. Kg2 {[%clk 0:00:41]}  Re8 {[%clk 0:00:08]} 24. e3 {[%clk 0:00:41]}  Re7 {[%clk 0:00:08]} 25. Rd2 {[%clk 0:00:41]}  Kf7 {[%clk 0:00:08]} 26. Rd5 {[%clk 0:00:36]}  Ke6 {[%clk 0:00:08]} 27. e4 {[%clk 0:00:34]}  Rd7 {[%clk 0:00:08]} 28. Rxd7 {[%clk 0:00:32]}  Kxd7 {[%clk 0:00:09]} 29. f4 {[%clk 0:00:33]}  Bd4 {[%clk 0:00:09]} 30. Kf3 {[%clk 0:00:34]}  Bxb2 {[%clk 0:00:08]} 31. e5 {[%clk 0:00:34]}  Ke6 {[%clk 0:00:08]} 32. Ke4 {[%clk 0:00:35]}  g6 {[%clk 0:00:09]} 33. g4 {[%clk 0:00:36]}  b5 {[%clk 0:00:07]} 34. f5+ {[%clk 0:00:36]}  gxf5+ {[%clk 0:00:07]} 35. gxf5+ {[%clk 0:00:37]}  Ke7 {[%clk 0:00:07]} 36. Kd5 {[%clk 0:00:38]}  b4 {[%clk 0:00:06]} 37. Kc4 {[%clk 0:00:35]}  Bxe5 {[%clk 0:00:05]} 38. Kb5 {[%clk 0:00:34]}  Bc7 {[%clk 0:00:06]} 39. Kc6 {[%clk 0:00:30]}  Bd8 {[%clk 0:00:06]} 40. Kd5 {[%clk 0:00:30]}  Kf6 {[%clk 0:00:06]} 0-1


[Site "https://www.chess.com"]

[Event "Titled Tuesday Blitz September 27 Early 2022"]
[White "Shuvalov, Evgenij"]
[Black "Rama, Tejas"]
[WhiteFideId "4187237"]
[BlackFideId "30907381"]
[WhiteElo "2033"]
[BlackElo "1513"]
[Result "1-0"]
[Round "07"]
[TimeControl "180+1"]
[Date "2022.09.27"]
[WhiteClock "0:00:53"]
[BlackClock "0:00:01"]

1. d4 {[%clk 0:02:55]}  Nf6 {[%clk 0:02:59]} 2. c4 {[%clk 0:02:55]}  e6 {[%clk 0:02:59]} 3. Nf3 {[%clk 0:02:54]}  d5 {[%clk 0:02:59]} 4. Nc3 {[%clk 0:02:52]}  c5 {[%clk 0:02:58]} 5. cxd5 {[%clk 0:02:51]}  Nxd5 {[%clk 0:02:58]} 6. e4 {[%clk 0:02:50]}  Nxc3 {[%clk 0:02:58]} 7. bxc3 {[%clk 0:02:51]}  cxd4 {[%clk 0:02:59]} 8. cxd4 {[%clk 0:02:52]}  Bb4+ {[%clk 0:02:58]} 9. Bd2 {[%clk 0:02:52]}  Bxd2+ {[%clk 0:02:59]} 10. Qxd2 {[%clk 0:02:53]}  O-O {[%clk 0:02:59]} 11. Bc4 {[%clk 0:02:51]}  Nd7 {[%clk 0:02:58]} 12. O-O {[%clk 0:02:50]}  b6 {[%clk 0:02:59]} 13. Rfe1 {[%clk 0:02:50]}  Bb7 {[%clk 0:02:58]} 14. Rad1 {[%clk 0:02:50]}  Rc8 {[%clk 0:02:58]} 15. Bb3 {[%clk 0:02:49]}  h6 {[%clk 0:02:59]} 16. h3 {[%clk 0:02:48]}  Nf6 {[%clk 0:02:00]} 17. d5 {[%clk 0:02:36]}  exd5 {[%clk 0:01:59]} 18. exd5 {[%clk 0:02:31]}  Re8 {[%clk 0:01:51]} 19. Ne5 {[%clk 0:02:27]}  Qd6 {[%clk 0:01:22]} 20. Qf4 {[%clk 0:02:18]}  Re7 {[%clk 0:01:06]} 21. Re3 {[%clk 0:02:04]}  Nxd5 {[%clk 0:00:56]} 22. Bxd5 {[%clk 0:01:57]}  Bxd5 {[%clk 0:00:56]} 23. Qd4 {[%clk 0:01:25]}  Rd8 {[%clk 0:00:52]} 24. f4 {[%clk 0:01:15]}  f6 {[%clk 0:00:46]} 25. Nc4 {[%clk 0:01:09]}  Qc7 {[%clk 0:00:20]} 26. Rxe7 {[%clk 0:01:08]}  Qxe7 {[%clk 0:00:20]} 27. Ne3 {[%clk 0:01:09]}  Qe6 {[%clk 0:00:06]} 28. Nxd5 {[%clk 0:01:06]}  Kf7 {[%clk 0:00:07]} 29. Qc4 {[%clk 0:00:59]}  Rd7 {[%clk 0:00:06]} 30. f5 {[%clk 0:00:58]}  Qe5 {[%clk 0:00:02]} 31. Nf4+ {[%clk 0:00:53]}  Ke7 {[%clk 0:00:01]} 32. Ng6+ {[%clk 0:00:53]} 1-0


[Site "https://www.chess.com"]

[Event "Titled Tuesday Blitz September 27 Early 2022"]
[White "Skliarov, Viktor"]
[Black "Becerra, Juan David"]
[WhiteFideId "14106736"]
[BlackFideId "4404998"]
[WhiteElo "2213"]
[BlackElo "2278"]
[Result "1-0"]
[Round "07"]
[TimeControl "180+1"]
[Date "2022.09.27"]
[WhiteClock "0:00:05"]
[BlackClock "0:00:02"]

1. e4 {[%clk 0:03:00]}  e5 {[%clk 0:02:52]} 2. Nc3 {[%clk 0:03:00]}  Nf6 {[%clk 0:02:52]} 3. Bc4 {[%clk 0:03:01]}  Bc5 {[%clk 0:02:47]} 4. d3 {[%clk 0:02:57]}  c6 {[%clk 0:02:39]} 5. Nf3 {[%clk 0:02:57]}  d6 {[%clk 0:02:39]} 6. h3 {[%clk 0:02:50]}  h6 {[%clk 0:02:39]} 7. a4 {[%clk 0:02:39]}  a5 {[%clk 0:02:37]} 8. d4 {[%clk 0:02:39]}  exd4 {[%clk 0:02:35]} 9. Nxd4 {[%clk 0:02:40]}  O-O {[%clk 0:02:33]} 10. O-O {[%clk 0:02:36]}  Re8 {[%clk 0:02:32]} 11. Re1 {[%clk 0:02:31]}  d5 {[%clk 0:02:29]} 12. Nb3 {[%clk 0:01:51]}  Bxf2+ {[%clk 0:02:12]} 13. Kxf2 {[%clk 0:01:51]}  dxc4 {[%clk 0:02:13]} 14. Qxd8 {[%clk 0:01:50]}  Rxd8 {[%clk 0:02:13]} 15. Nd2 {[%clk 0:01:50]}  Be6 {[%clk 0:02:10]} 16. e5 {[%clk 0:01:50]}  Nd5 {[%clk 0:02:00]} 17. Nde4 {[%clk 0:01:47]}  Nb4 {[%clk 0:01:59]} 18. Re2 {[%clk 0:01:45]}  Nd7 {[%clk 0:01:59]} 19. Bf4 {[%clk 0:01:40]}  Nb6 {[%clk 0:01:51]} 20. Nd6 {[%clk 0:01:25]}  Rd7 {[%clk 0:01:46]} 21. Nce4 {[%clk 0:01:21]}  Na6 {[%clk 0:01:16]} 22. g4 {[%clk 0:01:16]}  Bd5 {[%clk 0:00:49]} 23. Ng3 {[%clk 0:00:52]}  Nc5 {[%clk 0:00:24]} 24. Be3 {[%clk 0:00:18]}  Nbxa4 {[%clk 0:00:24]} 25. Bd4 {[%clk 0:00:18]}  b6 {[%clk 0:00:24]} 26. h4 {[%clk 0:00:17]}  b5 {[%clk 0:00:22]} 27. g5 {[%clk 0:00:14]}  Ne6 {[%clk 0:00:19]} 28. Be3 {[%clk 0:00:13]}  hxg5 {[%clk 0:00:15]} 29. hxg5 {[%clk 0:00:13]}  g6 {[%clk 0:00:16]} 30. Rb1 {[%clk 0:00:11]}  Kg7 {[%clk 0:00:15]} 31. Nge4 {[%clk 0:00:10]}  Rdd8 {[%clk 0:00:12]} 32. Kg3 {[%clk 0:00:08]}  Rab8 {[%clk 0:00:07]} 33. Rf2 {[%clk 0:00:08]}  Nc7 {[%clk 0:00:05]} 34. Nc5 {[%clk 0:00:06]}  Nxc5 {[%clk 0:00:04]} 35. Bxc5 {[%clk 0:00:07]}  Be6 {[%clk 0:00:04]} 36. Rbf1 {[%clk 0:00:05]}  Rf8 {[%clk 0:00:04]} 37. Ne4 {[%clk 0:00:05]}  Nd5 {[%clk 0:00:04]} 38. Bd6 {[%clk 0:00:04]}  Rbd8 {[%clk 0:00:04]} 39. Nf6 {[%clk 0:00:04]}  Rxd6 {[%clk 0:00:03]} 40. exd6 {[%clk 0:00:03]}  Rd8 {[%clk 0:00:03]} 41. Nxd5 {[%clk 0:00:03]}  Bxd5 {[%clk 0:00:04]} 42. Ra1 {[%clk 0:00:03]}  a4 {[%clk 0:00:03]} 43. Rf6 {[%clk 0:00:03]}  Be6 {[%clk 0:00:04]} 44. Rd1 {[%clk 0:00:03]}  Rd7 {[%clk 0:00:04]} 45. Kf4 {[%clk 0:00:04]}  b4 {[%clk 0:00:03]} 46. Ke5 {[%clk 0:00:04]}  c3 {[%clk 0:00:03]} 47. bxc3 {[%clk 0:00:04]}  b3 {[%clk 0:00:03]} 48. cxb3 {[%clk 0:00:03]}  Bxb3 {[%clk 0:00:04]} 49. Ra1 {[%clk 0:00:02]}  Rd8 {[%clk 0:00:02]} 50. Kd4 {[%clk 0:00:03]}  Rc8 {[%clk 0:00:02]} 51. Kc5 {[%clk 0:00:03]}  Kf8 {[%clk 0:00:02]} 52. c4 {[%clk 0:00:03]}  Rb8 {[%clk 0:00:02]} 53. Re1 {[%clk 0:00:02]}  Rc8 {[%clk 0:00:02]} 54. d7 {[%clk 0:00:02]}  Rd8 {[%clk 0:00:02]} 55. Kd6 {[%clk 0:00:03]}  a3 {[%clk 0:00:02]} 56. Ra1 {[%clk 0:00:03]}  a2 {[%clk 0:00:02]} 57. Rf4 {[%clk 0:00:03]}  Rb8 {[%clk 0:00:02]} 58. Kc7 {[%clk 0:00:03]}  Ra8 {[%clk 0:00:01]} 59. d8=Q+ {[%clk 0:00:04]}  Rxd8 {[%clk 0:00:02]} 60. Kxd8 {[%clk 0:00:05]} 1-0


[Site "https://www.chess.com"]

[Event "Titled Tuesday Blitz September 27 Early 2022"]
[White "So, Wesley"]
[Black "Moksh Amit Doshi"]
[WhiteFideId "5202213"]
[BlackFideId "25064967"]
[WhiteElo "2763"]
[BlackElo "2245"]
[Result "1-0"]
[Round "07"]
[TimeControl "180+1"]
[Date "2022.09.27"]
[WhiteClock "0:02:04"]
[BlackClock "0:01:03"]

1. e4 {[%clk 0:03:00]}  e5 {[%clk 0:02:52]} 2. Nf3 {[%clk 0:03:00]}  Nc6 {[%clk 0:02:52]} 3. d4 {[%clk 0:03:00]}  exd4 {[%clk 0:02:50]} 4. Nxd4 {[%clk 0:03:01]}  Nf6 {[%clk 0:02:48]} 5. Nc3 {[%clk 0:03:01]}  Bb4 {[%clk 0:02:47]} 6. Nxc6 {[%clk 0:03:00]}  bxc6 {[%clk 0:02:48]} 7. Bd3 {[%clk 0:03:00]}  d5 {[%clk 0:02:46]} 8. O-O {[%clk 0:03:01]}  O-O {[%clk 0:02:46]} 9. exd5 {[%clk 0:03:01]}  Bg4 {[%clk 0:02:44]} 10. f3 {[%clk 0:02:58]}  Bh5 {[%clk 0:02:45]} 11. Bg5 {[%clk 0:02:55]}  cxd5 {[%clk 0:02:20]} 12. Bxf6 {[%clk 0:02:54]}  Qxf6 {[%clk 0:02:21]} 13. Nxd5 {[%clk 0:02:54]}  Qxb2 {[%clk 0:02:12]} 14. Kh1 {[%clk 0:02:48]}  Bd6 {[%clk 0:02:04]} 15. Rb1 {[%clk 0:02:14]}  Qe5 {[%clk 0:01:57]} 16. f4 {[%clk 0:02:04]}  Bxd1 {[%clk 0:01:03]} 17. fxe5 {[%clk 0:02:04]} 1-0


[Site "https://www.chess.com"]

[Event "Titled Tuesday Blitz September 27 Early 2022"]
[White "Sukandar, Irine Kharisma"]
[Black "Korelskiy, Egor"]
[WhiteFideId "7101937"]
[BlackFideId "34329064"]
[WhiteElo "2284"]
[BlackElo "2071"]
[Result "1-0"]
[Round "07"]
[TimeControl "180+1"]
[Date "2022.09.27"]
[WhiteClock "0:00:41"]
[BlackClock "0:01:05"]

1. d4 {[%clk 0:03:00]}  d5 {[%clk 0:02:59]} 2. c4 {[%clk 0:03:00]}  e6 {[%clk 0:02:59]} 3. Nc3 {[%clk 0:02:58]}  c6 {[%clk 0:02:59]} 4. e3 {[%clk 0:02:46]}  Bd6 {[%clk 0:02:58]} 5. Nf3 {[%clk 0:02:46]}  f5 {[%clk 0:02:57]} 6. Ne5 {[%clk 0:02:25]}  Nf6 {[%clk 0:02:57]} 7. Be2 {[%clk 0:02:17]}  O-O {[%clk 0:02:55]} 8. O-O {[%clk 0:02:17]}  Nbd7 {[%clk 0:02:54]} 9. f4 {[%clk 0:02:16]}  Qe7 {[%clk 0:02:52]} 10. a3 {[%clk 0:02:10]}  Ne4 {[%clk 0:02:49]} 11. Nxe4 {[%clk 0:02:07]}  fxe4 {[%clk 0:02:50]} 12. b4 {[%clk 0:02:05]}  Nf6 {[%clk 0:02:41]} 13. Qb3 {[%clk 0:01:49]}  Bd7 {[%clk 0:02:34]} 14. Bb2 {[%clk 0:01:48]}  a6 {[%clk 0:02:28]} 15. a4 {[%clk 0:01:31]}  dxc4 {[%clk 0:02:09]} 16. Bxc4 {[%clk 0:01:29]}  b5 {[%clk 0:02:05]} 17. Nxd7 {[%clk 0:01:10]}  bxc4 {[%clk 0:01:56]} 18. Nxf6+ {[%clk 0:01:10]}  gxf6 {[%clk 0:01:54]} 19. Qxc4 {[%clk 0:01:10]}  Bxb4 {[%clk 0:01:54]} 20. Qxc6 {[%clk 0:01:09]}  Rfc8 {[%clk 0:01:53]} 21. Qxe4 {[%clk 0:01:09]}  f5 {[%clk 0:01:44]} 22. Qf3 {[%clk 0:01:04]}  Rc2 {[%clk 0:01:34]} 23. Qxa8+ {[%clk 0:01:03]}  Kf7 {[%clk 0:01:34]} 24. Rab1 {[%clk 0:00:54]}  Bd2 {[%clk 0:01:30]} 25. d5 {[%clk 0:00:52]}  Bxe3+ {[%clk 0:01:28]} 26. Kh1 {[%clk 0:00:52]}  Qh4 {[%clk 0:01:10]} 27. dxe6+ {[%clk 0:00:49]}  Kxe6 {[%clk 0:01:06]} 28. Qe8+ {[%clk 0:00:46]}  Kd6 {[%clk 0:01:05]} 29. Qxe3 {[%clk 0:00:41]} 1-0


[Site "https://www.chess.com"]

[Event "Titled Tuesday Blitz September 27 Early 2022"]
[White "Suleymanli, Suleyman"]
[Black "Vogel, Roven"]
[WhiteFideId "13416375"]
[BlackFideId "12908088"]
[WhiteElo "1652"]
[BlackElo "2501"]
[Result "1/2-1/2"]
[Round "07"]
[TimeControl "180+1"]
[Date "2022.09.27"]
[WhiteClock "0:00:13"]
[BlackClock "0:00:03"]

1. Nf3 {[%clk 0:03:00]}  d5 {[%clk 0:02:59]} 2. g3 {[%clk 0:03:01]}  g6 {[%clk 0:02:59]} 3. Bg2 {[%clk 0:03:02]}  Bg7 {[%clk 0:02:59]} 4. d4 {[%clk 0:03:02]}  Nf6 {[%clk 0:02:59]} 5. O-O {[%clk 0:03:03]}  O-O {[%clk 0:02:59]} 6. c4 {[%clk 0:03:04]}  c6 {[%clk 0:03:00]} 7. cxd5 {[%clk 0:03:04]}  cxd5 {[%clk 0:03:00]} 8. Nc3 {[%clk 0:03:05]}  Ne4 {[%clk 0:03:00]} 9. Ne5 {[%clk 0:03:06]}  Nxc3 {[%clk 0:02:47]} 10. bxc3 {[%clk 0:03:07]}  Nc6 {[%clk 0:02:46]} 11. Nxc6 {[%clk 0:03:06]}  bxc6 {[%clk 0:02:46]} 12. Qa4 {[%clk 0:03:05]}  Qb6 {[%clk 0:02:41]} 13. Ba3 {[%clk 0:03:04]}  Qa6 {[%clk 0:02:38]} 14. Qxa6 {[%clk 0:02:59]}  Bxa6 {[%clk 0:02:38]} 15. Rfb1 {[%clk 0:02:59]}  Rfb8 {[%clk 0:02:33]} 16. e4 {[%clk 0:02:43]}  e6 {[%clk 0:02:20]} 17. exd5 {[%clk 0:02:38]}  cxd5 {[%clk 0:02:19]} 18. Bd6 {[%clk 0:02:33]}  Rc8 {[%clk 0:02:14]} 19. Bc5 {[%clk 0:02:28]}  Bf8 {[%clk 0:02:07]} 20. Bxf8 {[%clk 0:02:27]}  Kxf8 {[%clk 0:02:08]} 21. Rb3 {[%clk 0:02:27]}  Rc7 {[%clk 0:02:06]} 22. Bf1 {[%clk 0:02:26]}  Bxf1 {[%clk 0:02:00]} 23. Kxf1 {[%clk 0:02:27]}  Ke7 {[%clk 0:01:54]} 24. Ke2 {[%clk 0:02:26]}  Kd7 {[%clk 0:01:54]} 25. Kd3 {[%clk 0:02:26]}  g5 {[%clk 0:01:49]} 26. h3 {[%clk 0:02:23]}  h5 {[%clk 0:01:47]} 27. Rab1 {[%clk 0:02:22]}  Rac8 {[%clk 0:01:42]} 28. Ra3 {[%clk 0:02:22]}  Ke7 {[%clk 0:01:39]} 29. Rb5 {[%clk 0:02:20]}  Kf6 {[%clk 0:01:34]} 30. Rba5 {[%clk 0:02:18]}  Ra8 {[%clk 0:01:33]} 31. Ra6 {[%clk 0:02:18]}  Kf5 {[%clk 0:01:31]} 32. R3a5 {[%clk 0:02:14]}  g4 {[%clk 0:00:27]} 33. h4 {[%clk 0:02:12]}  f6 {[%clk 0:00:26]} 34. Rb5 {[%clk 0:02:00]}  Rac8 {[%clk 0:00:26]} 35. Ra3 {[%clk 0:02:00]}  Rc6 {[%clk 0:00:21]} 36. Rba5 {[%clk 0:01:58]}  Rb6 {[%clk 0:00:18]} 37. Rb3 {[%clk 0:01:52]}  Rcb8 {[%clk 0:00:16]} 38. Kc2 {[%clk 0:01:51]}  Rxb3 {[%clk 0:00:16]} 39. axb3 {[%clk 0:01:50]}  Rb7 {[%clk 0:00:16]} 40. Ra6 {[%clk 0:01:47]}  e5 {[%clk 0:00:15]} 41. dxe5 {[%clk 0:01:27]}  fxe5 {[%clk 0:00:16]} 42. b4 {[%clk 0:01:27]}  Ke4 {[%clk 0:00:16]} 43. Rf6 {[%clk 0:01:26]}  Rc7 {[%clk 0:00:14]} 44. Kd2 {[%clk 0:01:24]}  Rb7 {[%clk 0:00:13]} 45. Rh6 {[%clk 0:01:22]}  Re7 {[%clk 0:00:13]} 46. Rxh5 {[%clk 0:01:22]}  Rf7 {[%clk 0:00:13]} 47. Ke2 {[%clk 0:01:21]}  Rc7 {[%clk 0:00:13]} 48. Rg5 {[%clk 0:01:20]}  Rxc3 {[%clk 0:00:12]} 49. Rxg4+ {[%clk 0:01:20]}  Kf5 {[%clk 0:00:13]} 50. Rg7 {[%clk 0:01:20]}  Rb3 {[%clk 0:00:12]} 51. Rxa7 {[%clk 0:01:20]}  Rxb4 {[%clk 0:00:11]} 52. h5 {[%clk 0:01:19]}  Rb2+ {[%clk 0:00:10]} 53. Kf3 {[%clk 0:01:19]}  Rb3+ {[%clk 0:00:09]} 54. Kg2 {[%clk 0:01:18]}  Kg5 {[%clk 0:00:09]} 55. Re7 {[%clk 0:01:18]}  Kf6 {[%clk 0:00:09]} 56. Rd7 {[%clk 0:01:15]}  Ke6 {[%clk 0:00:07]} 57. Rd8 {[%clk 0:01:13]}  Rb7 {[%clk 0:00:07]} 58. Re8+ {[%clk 0:01:11]}  Kf6 {[%clk 0:00:06]} 59. f3 {[%clk 0:01:10]}  e4 {[%clk 0:00:05]} 60. fxe4 {[%clk 0:01:09]}  dxe4 {[%clk 0:00:06]} 61. Rxe4 {[%clk 0:01:10]}  Kg5 {[%clk 0:00:06]} 62. Rh4 {[%clk 0:00:52]}  Rb2+ {[%clk 0:00:05]} 63. Kh3 {[%clk 0:00:51]}  Kh6 {[%clk 0:00:06]} 64. Kg4 {[%clk 0:00:43]}  Rb4+ {[%clk 0:00:05]} 65. Kh3 {[%clk 0:00:43]}  Rb2 {[%clk 0:00:05]} 66. Ra4 {[%clk 0:00:38]}  Kxh5 {[%clk 0:00:04]} 67. Ra5+ {[%clk 0:00:38]}  Kg6 {[%clk 0:00:05]} 68. Kh4 {[%clk 0:00:38]}  Rb8 {[%clk 0:00:05]} 69. Ra6+ {[%clk 0:00:37]}  Kg7 {[%clk 0:00:06]} 70. g4 {[%clk 0:00:37]}  Kg8 {[%clk 0:00:06]} 71. Kg5 {[%clk 0:00:37]}  Rf8 {[%clk 0:00:06]} 72. Kg6 {[%clk 0:00:37]}  Rc8 {[%clk 0:00:06]} 73. g5 {[%clk 0:00:37]}  Rd8 {[%clk 0:00:06]} 74. Kh6 {[%clk 0:00:34]}  Rc8 {[%clk 0:00:06]} 75. g6 {[%clk 0:00:34]}  Rb8 {[%clk 0:00:06]} 76. Ra7 {[%clk 0:00:33]}  Rc8 {[%clk 0:00:06]} 77. Ra6 {[%clk 0:00:32]}  Rb8 {[%clk 0:00:06]} 78. Kg5 {[%clk 0:00:32]}  Rb5+ {[%clk 0:00:05]} 79. Kf6 {[%clk 0:00:32]}  Rb8 {[%clk 0:00:06]} 80. Ra7 {[%clk 0:00:28]}  Rb6+ {[%clk 0:00:05]} 81. Kg5 {[%clk 0:00:28]}  Rb8 {[%clk 0:00:06]} 82. Kh6 {[%clk 0:00:28]}  Rc8 {[%clk 0:00:06]} 83. Rg7+ {[%clk 0:00:27]}  Kh8 {[%clk 0:00:06]} 84. Rf7 {[%clk 0:00:25]}  Kg8 {[%clk 0:00:06]} 85. Rf2 {[%clk 0:00:25]}  Rd8 {[%clk 0:00:06]} 86. Re2 {[%clk 0:00:25]}  Rc8 {[%clk 0:00:06]} 87. Rd2 {[%clk 0:00:25]}  Rb8 {[%clk 0:00:06]} 88. Ra2 {[%clk 0:00:25]}  Rc8 {[%clk 0:00:06]} 89. Ra7 {[%clk 0:00:25]}  Rd8 {[%clk 0:00:06]} 90. Rb7 {[%clk 0:00:23]}  Rc8 {[%clk 0:00:05]} 91. Rg7+ {[%clk 0:00:23]}  Kh8 {[%clk 0:00:06]} 92. Re7 {[%clk 0:00:24]}  Kg8 {[%clk 0:00:04]} 93. Kg5 {[%clk 0:00:24]}  Rd8 {[%clk 0:00:03]} 94. Re6 {[%clk 0:00:19]}  Rc8 {[%clk 0:00:03]} 95. Kf6 {[%clk 0:00:19]}  Rd8 {[%clk 0:00:04]} 96. g7 {[%clk 0:00:19]}  Rc8 {[%clk 0:00:04]} 97. Kg6 {[%clk 0:00:19]}  Rd8 {[%clk 0:00:04]} 98. Rc6 {[%clk 0:00:17]}  Rb8 {[%clk 0:00:04]} 99. Kh6 {[%clk 0:00:16]}  Rd8 {[%clk 0:00:03]} 100. Kg6 {[%clk 0:00:14]}  Rd6+ {[%clk 0:00:03]} 101. Rxd6 {[%clk 0:00:13]} 1/2-1/2


[Site "https://www.chess.com"]

[Event "Titled Tuesday Blitz September 27 Early 2022"]
[White "Sztokbant, Bernardo Vainzoff"]
[Black "Maksimenko, Viktor"]
[WhiteFideId "2115956"]
[BlackFideId "13710478"]
[WhiteElo "2172"]
[BlackElo "2269"]
[Result "0-1"]
[Round "07"]
[TimeControl "180+1"]
[Date "2022.09.27"]
[WhiteClock "0:00:03"]
[BlackClock "0:00:05"]

1. d4 {[%clk 0:02:59]}  Nf6 {[%clk 0:02:48]} 2. c4 {[%clk 0:02:57]}  e6 {[%clk 0:02:48]} 3. Nf3 {[%clk 0:02:55]}  b6 {[%clk 0:02:48]} 4. g3 {[%clk 0:02:55]}  Bb7 {[%clk 0:02:47]} 5. Bg2 {[%clk 0:02:55]}  Bb4+ {[%clk 0:02:48]} 6. Bd2 {[%clk 0:02:55]}  Be7 {[%clk 0:02:47]} 7. O-O {[%clk 0:02:54]}  O-O {[%clk 0:02:45]} 8. Bf4 {[%clk 0:02:54]}  c6 {[%clk 0:02:45]} 9. Nc3 {[%clk 0:02:44]}  d5 {[%clk 0:02:45]} 10. cxd5 {[%clk 0:02:33]}  cxd5 {[%clk 0:02:43]} 11. Rc1 {[%clk 0:02:33]}  Nc6 {[%clk 0:02:43]} 12. Ne5 {[%clk 0:02:27]}  Rc8 {[%clk 0:02:34]} 13. Qa4 {[%clk 0:02:20]}  Nd7 {[%clk 0:02:16]} 14. Nd3 {[%clk 0:01:43]}  a6 {[%clk 0:02:12]} 15. Be3 {[%clk 0:01:33]}  h6 {[%clk 0:01:42]} 16. Qd1 {[%clk 0:01:26]}  Bf6 {[%clk 0:01:41]} 17. Nf4 {[%clk 0:01:22]}  b5 {[%clk 0:01:34]} 18. Qd2 {[%clk 0:01:19]}  Nb6 {[%clk 0:01:34]} 19. b3 {[%clk 0:01:19]}  Be7 {[%clk 0:01:32]} 20. Bh3 {[%clk 0:01:17]}  Ba3 {[%clk 0:01:28]} 21. Rcd1 {[%clk 0:01:02]}  Bb4 {[%clk 0:01:27]} 22. Rc1 {[%clk 0:01:01]}  Qe7 {[%clk 0:01:20]} 23. Nh5 {[%clk 0:00:53]}  f5 {[%clk 0:01:10]} 24. Nf4 {[%clk 0:00:49]}  Rc7 {[%clk 0:01:07]} 25. Ng6 {[%clk 0:00:48]}  Qd8 {[%clk 0:01:03]} 26. Nxf8 {[%clk 0:00:48]}  Bxf8 {[%clk 0:01:04]} 27. Qd3 {[%clk 0:00:41]}  Ba3 {[%clk 0:00:56]} 28. Bf4 {[%clk 0:00:38]}  Rc8 {[%clk 0:00:54]} 29. Rcd1 {[%clk 0:00:37]}  Bf8 {[%clk 0:00:42]} 30. Nb1 {[%clk 0:00:33]}  Nb4 {[%clk 0:00:42]} 31. Qd2 {[%clk 0:00:34]}  Rc2 {[%clk 0:00:41]} 32. Qe3 {[%clk 0:00:34]}  Qd7 {[%clk 0:00:39]} 33. a3 {[%clk 0:00:32]}  Nc6 {[%clk 0:00:36]} 34. Rc1 {[%clk 0:00:31]}  Rb2 {[%clk 0:00:31]} 35. Nd2 {[%clk 0:00:20]}  Bxa3 {[%clk 0:00:27]} 36. Nf3 {[%clk 0:00:20]}  Bf8 {[%clk 0:00:24]} 37. Qc3 {[%clk 0:00:16]}  Rxe2 {[%clk 0:00:22]} 38. Rfe1 {[%clk 0:00:16]}  Re4 {[%clk 0:00:22]} 39. Be3 {[%clk 0:00:10]}  Bb4 {[%clk 0:00:21]} 40. Qc2 {[%clk 0:00:06]}  Bxe1 {[%clk 0:00:20]} 41. Rxe1 {[%clk 0:00:07]}  a5 {[%clk 0:00:13]} 42. Nd2 {[%clk 0:00:06]}  a4 {[%clk 0:00:14]} 43. Nxe4 {[%clk 0:00:06]}  dxe4 {[%clk 0:00:13]} 44. bxa4 {[%clk 0:00:05]}  bxa4 {[%clk 0:00:14]} 45. Qc5 {[%clk 0:00:05]}  Nd5 {[%clk 0:00:14]} 46. Bf1 {[%clk 0:00:05]}  Nce7 {[%clk 0:00:13]} 47. Bb5 {[%clk 0:00:05]}  Bc6 {[%clk 0:00:13]} 48. Bxc6 {[%clk 0:00:04]}  Nxc6 {[%clk 0:00:13]} 49. Qb5 {[%clk 0:00:04]}  Qd6 {[%clk 0:00:09]} 50. Qxa4 {[%clk 0:00:04]}  Ncb4 {[%clk 0:00:09]} 51. Qa8+ {[%clk 0:00:04]}  Kh7 {[%clk 0:00:09]} 52. Bd2 {[%clk 0:00:04]}  Nd3 {[%clk 0:00:09]} 53. Rf1 {[%clk 0:00:04]}  Qb6 {[%clk 0:00:09]} 54. Qe8 {[%clk 0:00:03]}  Qd6 {[%clk 0:00:09]} 55. h4 {[%clk 0:00:03]}  Nf6 {[%clk 0:00:09]} 56. Qf7 {[%clk 0:00:03]}  Qd5 {[%clk 0:00:08]} 57. h5 {[%clk 0:00:04]}  Qd6 {[%clk 0:00:06]} 58. Qg6+ {[%clk 0:00:04]}  Kh8 {[%clk 0:00:06]} 59. Bxh6 {[%clk 0:00:05]}  Qf8 {[%clk 0:00:01]} 60. Bg5 {[%clk 0:00:05]}  Nh7 {[%clk 0:00:01]} 61. Bh4 {[%clk 0:00:03]}  Nb4 {[%clk 0:00:01]} 62. Qxe6 {[%clk 0:00:03]}  Qg8 {[%clk 0:00:01]} 63. Qxf5 {[%clk 0:00:03]}  Nd5 {[%clk 0:00:01]} 64. Qxd5 {[%clk 0:00:03]}  Qxd5 {[%clk 0:00:01]} 65. h6 {[%clk 0:00:03]}  Qh5 {[%clk 0:00:01]} 66. hxg7+ {[%clk 0:00:04]}  Kxg7 {[%clk 0:00:02]} 67. Re1 {[%clk 0:00:04]}  Ng5 {[%clk 0:00:02]} 68. Rf1 {[%clk 0:00:04]}  Nf3+ {[%clk 0:00:02]} 69. Kg2 {[%clk 0:00:05]}  Qg4 {[%clk 0:00:03]} 70. Rh1 {[%clk 0:00:04]}  Nxd4 {[%clk 0:00:03]} 71. Re1 {[%clk 0:00:04]}  Nf3 {[%clk 0:00:03]} 72. Rh1 {[%clk 0:00:04]}  Kf7 {[%clk 0:00:03]} 73. Rh3 {[%clk 0:00:03]}  Ne1+ {[%clk 0:00:03]} 74. Kf1 {[%clk 0:00:03]}  Qd1 {[%clk 0:00:04]} 75. Bg5 {[%clk 0:00:03]}  Nf3+ {[%clk 0:00:04]} 76. Kg2 {[%clk 0:00:03]}  Qg1# {[%clk 0:00:05]} 0-1


[Site "https://www.chess.com"]